Workbook

Sheet N°factures
A1: F201901 | B1: ='F201901'!$B$16 -> 2019 - 01 | C1: =INDIRECT(A1&"!$B$16") -> 2019 - 01
A2: F201902 | B2: ='F201901'!$B$16 -> 2019 - 01 | C2: =INDIRECT(A2&"!$B$16") -> 2019 - 02
A3: F201903 | B3: ='F201901'!$B$16 -> 2019 - 01
A4: F201904 | B4: ='F201901'!$B$16 -> 2019 - 01
A5: F201905 | B5: ='F201901'!$B$16 -> 2019 - 01
A6: F201906 | B6: ='F201901'!$B$16 -> 2019 - 01
A7: F201907 | B7: ='F201901'!$B$16 -> 2019 - 01
A8: F201908 | B8: ='F201901'!$B$16 -> 2019 - 01
A9: F201909 | B9: ='F201901'!$B$16 -> 2019 - 01
A10: F201910 | B10: ='F201901'!$B$16 -> 2019 - 01
A11: F201911
A12: F201912
A13: F201913
A14: F201914
A15: F201915
A16: F201916
A17: F201917
A18: F201918
A19: F201919
A20: F201920
A21: F201921
A22: F201922
A23: F201923
A24: F201924
A25: F201925
A26: F201926
A27: F201927
A28: F201928
A29: F201929
A30: F201930
A31: F201931
A32: F201932
A33: F201933
A34: F201934
A35: F201935
A36: F201936
A37: F201937
A38: F201938
A39: F201939
A40: F201940
A41: F201941
A42: F201942
A43: F201943
A44: F201944
A45: F201945
A46: F201946
A47: F201947
A48: F201948
A49: F201949
A50: F201950

Sheet FACTURATION JANVIER 2019
C2: SYNTHESE DE LA FACTURATION MENSUELLE - TAHITI PARACHUTISME | K2: Facturation TTC totale du mois
L5: =SUM(L9:L70) -> 146200
A8: Dates des factures | B8: N° des factures | C8: Nom des clients | D8: Libellés des factures | E8: Montants HT (Prestations 5%) | F8: Montants TVA (Prestations 5%) | G8: Montants HT (Prestations 13%) | H8: Montants TVA (Prestations 13%) | I8: Montants HT (Ventes 16%) | J8: Montants TVA (Prestation 16%) | K8: Débours / Divers | L8: Montant total TTC | M8: Modes de règlement | N8: Dates de règlement
A9: ='F201901'!B15 -> 2019-01-02 | B9: ='F201901'!B16 -> 2019 - 01 | C9: ='F201901'!F16 -> MARTIN Philippe | D9: ='F201901'!A27 -> Saut en parachute tandem Moorea | E9: ='F201901'!H38 -> 128571.4286 | F9: =+E9*0.05 -> 6428.571429 | G9: ='F201901'!H39 -> 0 | H9: =+G9*0.13 -> 0 | I9: ='F201901'!H40 -> 9655.172414 | J9: =I9*0.16 -> 1544.827586 | K9: ='F201901'!H41 -> 0 | L9: =+E9+F9+G9+H9+I9+J9+K9 -> 146200 | M9: ='F201901'!B46 -> ESP
F10: =+E10*0.05 -> 0 | H10: =+G10*0.13 -> 0 | J10: =I10*0.16 -> 0 | L10: =+E10+F10+G10+H10+I10+J10+K10 -> 0
F11: =+E11*0.05 -> 0 | H11: =+G11*0.13 -> 0 | J11: =I11*0.16 -> 0 | L11: 0
F12: 0 | H12: 0 | J12: 0 | L12: 0
F13: 0 | H13: 0 | J13: 0 | L13: 0
F14: 0 | H14: 0 | J14: 0 | L14: =+E14+F14+G14+H14+I14+J14+K14 -> 0
F15: 0 | H15: 0 | J15: 0 | L15: 0
F16: 0 | H16: 0 | J16: 0 | L16: 0
F17: 0 | H17: 0 | J17: 0 | L17: 0
F18: =+E18*0.05 -> 0 | H18: =+G18*0.13 -> 0 | J18: =I18*0.16 -> 0 | L18: =+E18+F18+G18+H18+I18+J18+K18 -> 0
F19: 0 | H19: 0 | J19: 0 | L19: 0
F20: 0 | H20: 0 | J20: 0 | L20: 0
F21: 0 | H21: 0 | J21: 0 | L21: 0
F22: 0 | H22: 0 | J22: 0 | L22: 0
F23: 0 | H23: 0 | J23: 0 | L23: 0
F24: 0 | H24: 0 | J24: 0 | L24: 0
F25: 0 | H25: 0 | J25: 0 | L25: 0
F26: 0 | H26: 0 | J26: 0 | L26: 0
F27: 0 | H27: 0 | J27: 0 | L27: 0
F28: 0 | H28: 0 | J28: 0 | L28: 0
F29: 0 | H29: 0 | J29: 0 | L29: 0
F30: 0 | H30: 0 | J30: 0 | L30: 0
F31: 0 | H31: 0 | J31: 0 | L31: 0
F32: 0 | H32: 0 | J32: 0 | L32: 0
F33: 0 | H33: 0 | J33: 0 | L33: 0
F34: 0 | H34: 0 | J34: 0 | L34: 0
F35: 0 | H35: 0 | J35: 0 | L35: 0
F36: 0 | H36: 0 | J36: 0 | L36: 0
F37: 0 | H37: 0 | J37: 0 | L37: 0
F38: 0 | H38: 0 | J38: 0 | L38: 0
F39: 0 | H39: 0 | J39: 0 | L39: 0
F40: 0 | H40: 0 | J40: 0 | L40: 0
F41: 0 | H41: 0 | J41: 0 | L41: 0
F42: 0 | H42: 0 | J42: 0 | L42: 0
F43: 0 | H43: 0 | J43: 0 | L43: 0
F44: 0 | H44: 0 | J44: 0 | L44: 0
F45: 0 | H45: 0 | J45: 0 | L45: 0
F46: 0 | H46: 0 | J46: 0 | L46: 0
F47: 0 | H47: 0 | J47: 0 | L47: 0
F48: 0 | H48: 0 | J48: 0 | L48: 0
F49: 0 | H49: 0 | J49: 0 | L49: 0
F50: 0 | H50: 0 | J50: 0 | L50: 0
F51: 0 | H51: 0 | J51: 0 | L51: 0
F52: 0 | H52: 0 | J52: 0 | L52: 0
F53: 0 | H53: 0 | J53: 0 | L53: 0
F54: 0 | H54: 0 | J54: 0 | L54: 0
F55: 0 | H55: 0 | J55: 0 | L55: 0
F56: 0 | H56: 0 | J56: 0 | L56: 0
F57: 0 | H57: 0 | J57: 0 | L57: 0
F58: 0 | H58: 0 | J58: 0 | L58: 0
F59: 0 | H59: 0 | J59: 0 | L59: 0
F60: 0 | H60: 0 | J60: 0 | L60: 0
F61: 0 | H61: 0 | J61: 0 | L61: 0
F62: 0 | H62: 0 | J62: 0 | L62: 0
F63: 0 | H63: 0 | J63: 0 | L63: 0
F64: 0 | H64: 0 | J64: 0 | L64: 0
F65: 0 | H65: 0 | J65: 0 | L65: 0
F66: 0 | H66: 0 | J66: 0 | L66: 0
F67: 0 | H67: 0 | J67: 0 | L67: 0
F68: 0 | H68: 0 | J68: 0 | L68: 0
F69: 0 | H69: 0 | J69: 0 | L69: 0
F70: 0 | H70: 0 | J70: 0 | L70: 0

Sheet F201901
A3: TAHITI PARACHUTISME S.A.R.L
A4: BP 2914
A5: 98703 – PUNAAUIA TAHITI
A6: Polynésie Française
A7: Tel: +689 87 33 97 23
A8: contact@tahiti-parachutisme.com
A9: www.tahiti-parachutisme.com
A11: RCS PAPEETE TPI 12 288 B
A12: N° TAHITI : A52941
A15: DATE | B15: 2019-01-02
A16: N° DE FACTURE | B16: 2019 - 01 | F16: MARTIN Philippe
F17: 1 impasse des saules
F18: 40220 Tarnos
A24: DESIGNATION | E24: P.U. TTC | F24: P.U. H.T. | G24: QUANTITE | H24: H.T. | I24: TVA | J24: TVA
A27: Saut en parachute tandem Moorea | E27: 40000 | F27: =E27/(1+J27) -> 38095.2381 | G27: 1 | H27: =F27*G27 -> 38095.2381 | I27: =H27*J27 -> 1904.761905 | J27: 0.05
A28: Saut en parachute tandem Bora | E28: 45000 | F28: =E28/(1+J28) -> 42857.14286 | G28: 1 | H28: =F28*G28 -> 42857.14286 | I28: =H28*J28 -> 2142.857143 | J28: 0.05
A29: Option video et photos incluse | E29: 25000 | F29: 23809.52381 | G29: 2 | H29: 47619.04762 | I29: 2380.952381 | J29: 0.05
A30: Prestations diverses | E30: 0 | F30: 0 | G30: 0 | H30: 0 | I30: 0 | J30: 0.13
A31: Ventes d'accessoires (tee-shirts..) | E31: 2800 | F31: =E31/1.16 -> 2413.793103 | G31: 4 | H31: 9655.172414 | I31: 1544.827586 | J31: 0.16
A33: Débours non soumis à TVA | E33: 0 | H33: =E33 -> 0 | J33: 0
H35: =SUM(H27:H34) -> 138226.601 | I35: =SUM(I27:I34) -> 7973.399015
H36: =+H35+I35 -> 146200
F38: H.T. soumis à 5% | H38: =SUM(H27:H29) -> 128571.4286
F39: H.T. soumis à 13% | H39: =H30 -> 0
F40: H.T. soumis à 16% | H40: =H31 -> 9655.172414
F41: H.T. non soumis | H41: =H33 -> 0
F42: TVA 5,00% | H42: =SUM(I27:I29) -> 6428.571429
F43: TVA 13,00% | H43: =I30 -> 0
F44: TVA 16,00% | H44: =I31 -> 1544.827586
F45: TOTAL T.T.C. | H45: =H38+H39+H40+H41+H42+H43+H44 -> 146200
A46: PAIEMENT : | B46: ESP
A53: TAHITI PARACHUTISME
A54: RIB : 12149 06730 30004178577 36
A55: IBAN : FR76 1214 9067 3030 0041 7857 736
A56: SWIFT : BPOLPFTP

Sheet F201902
A3: TAHITI PARACHUTISME S.A.R.L
A4: BP 2914
A5: 98703 – PUNAAUIA TAHITI
A6: Polynésie Française
A7: Tel: +689 87 33 97 23
A8: contact@tahiti-parachutisme.com
A9: www.tahiti-parachutisme.com
A11: RCS PAPEETE TPI 12 288 B
A12: N° TAHITI : A52941
A15: DATE | B15: XX/01/2019
A16: N° DE FACTURE | B16: 2019 - 02 | F16: MARTIN Philippe
F17: 1 impasse des saules
F18: 40220 Tarnos
A24: DESIGNATION | E24: P.U. TTC | F24: P.U. H.T. | G24: QUANTITE | H24: H.T. | I24: TVA | J24: TVA
A27: Saut en parachute tandem Moorea | F27: =E27/(1+J27) -> 0 | H27: =F27*G27 -> 0 | I27: =H27*J27 -> 0 | J27: 0.05
A28: Saut en parachute tandem Bora | F28: =E28/(1+J28) -> 0 | H28: =F28*G28 -> 0 | I28: =H28*J28 -> 0 | J28: 0.05
A29: Option video et photos incluse | F29: 0 | H29: 0 | I29: 0 | J29: 0.05
A30: Prestations diverses | F30: 0 | H30: 0 | I30: 0 | J30: 0.13
A31: Ventes d'accessoires (tee-shirts..) | F31: =E31/1.16 -> 0 | H31: 0 | I31: 0 | J31: 0.16
A33: Débours non soumis à TVA | H33: =E33 -> 0 | J33: 0
H35: =SUM(H27:H34) -> 0 | I35: =SUM(I27:I34) -> 0
H36: =+H35+I35 -> 0
F38: H.T. soumis à 5% | H38: =SUM(H27:H29) -> 0
F39: H.T. soumis à 13% | H39: =H30 -> 0
F40: H.T. soumis à 16% | H40: =H31 -> 0
F41: H.T. non soumis | H41: =H33 -> 0
F42: TVA 5,00% | H42: =SUM(I27:I29) -> 0
F43: TVA 13,00% | H43: =I30 -> 0
F44: TVA 16,00% | H44: =I31 -> 0
F45: TOTAL T.T.C. | H45: =H38+H39+H40+H41+H42+H43+H44 -> 0
A46: PAIEMENT :
A53: TAHITI PARACHUTISME
A54: RIB : 12149 06730 30004178577 36
A55: IBAN : FR76 1214 9067 3030 0041 7857 736
A56: SWIFT : BPOLPFTP

Sheet Feuil1
